bitfinex-derivatives/quotes_ETHF0:USTF0_20250702
["timestamp","ask_amount","ask_price","bid_price","bid_amount"]
[1751497945892,35.629,2592.9,2592.5,2.7354]
[1751497946083,41.07399832,2592.9,2592.1,1.92802]
[1751497946289,5.44499832,2592.6,2592.3,0.77115]
[1751497946489,5.44499832,2592.6,2592.0,1.372]
[1751497946788,5.44499832,2592.3,2592.0,2.14324]
[1751497947091,36.40021,2592.2,2591.9,0.77127]
[1751497947294,36.40021,2592.2,2591.8,0.77129]
[1751497948294,0.77123,2592.1,2591.7,2.08682]
[1751497948494,0.77126,2592.0,2591.7,2.08682]
[1751497948791,41.07399832,2592.2,2591.7,1.3155]
[1751497948986,0.77122,2592.1,2591.8,0.7713]
[1751497949492,0.77126,2592.0,2591.7,2.08682]
[1751497949893,0.77124,2592.1,2591.7,2.08682]
[1751497950087,0.77124,2592.1,2591.8,0.77131]
[1751497950285,0.77124,2592.1,2591.7,2.08683]
[1751497950490,0.77124,2592.1,2591.8,0.77131]
[1751497950994,41.07399832,2592.2,2591.7,2.08683]
[1751497951393,0.77126,2592.0,2591.7,2.08683]
[1751497951697,0.77124,2592.1,2591.8,0.77131]
[1751497953490,1.02699094,2592.0,2591.8,0.77131]
[1751497953695,0.77124,2592.1,2591.8,0.77131]
[1751497953898,5.44499832,2591.9,2591.7,1.3155]
[1751497954093,5.44499832,2591.9,2591.7,2.08684]
[1751497954295,1.02718138,2591.8,2591.7,2.08684]
[1751497954496,1.02718138,2591.8,2591.7,1.3155]
[1751497954793,1.02718138,2591.8,2591.7,2.08684]
[1751497954999,11.81516,2592.4,2592.1,0.77121]
[1751497955188,37.43214884,2592.3,2592.0,0.77123]
[1751497955393,1.02697884,2592.2,2591.9,0.77127]
[1751497955891,0.77123,2592.1,2591.8,2.1518]
[1751497956091,1.02697884,2592.0,2591.8,2.1518]
[1751497956398,1.02666833,2591.9,2591.7,2.08683]
[1751497956598,0.77129,2591.9,2591.7,2.08683]
[1751497956790,0.77129,2591.9,2591.7,1.3155]
[1751497956996,35.634,2592.0,2591.7,2.08683]
[1751497957196,1.02668051,2591.9,2591.7,2.08683]
[1751497957396,36.40527,2592.0,2591.7,2.08683]
[1751497958091,6.47153939,2591.9,2591.4,1.27]
[1751497958297,0.77138,2591.6,2591.3,0.643]
[1751497959191,0.77141,2591.5,2591.3,1.41445]
[1751497959396,5.44499832,2591.6,2591.3,0.643]
[1751497959597,0.77146,2591.4,2591.1,1.43291]
[1751497959996,0.77143,2591.5,2591.2,0.77149]
[1751497960296,7.53028832,2591.6,2591.3,0.77145]
[1751497960496,7.53027832,2591.6,2591.3,0.77144]
[1751497960795,0.77142,2591.5,2591.2,0.77148]
[1751497960997,0.77144,2591.4,2591.1,1.4329]
[1751497961397,0.77144,2591.4,2591.2,0.77149]
[1751497962501,35.637,2591.5,2591.1,0.6614]
[1751497962701,35.637,2591.5,2591.4,0.77143]
[1751497963800,38.25770541,2591.5,2591.4,0.77143]
[1751497964697,38.25770541,2591.5,2591.3,0.663]
[1751497964898,0.77147,2591.3,2591.1,0.6614]
[1751497965096,3.39219541,2591.2,2590.9,1.43456]
[1751497965295,2.62070541,2591.2,2591.0,0.77153]
[1751497965498,3.39219541,2591.2,2591.0,0.77153]
[1751497965700,2.62070541,2591.2,2591.1,0.77152]
[1751497966099,2.62070541,2591.2,2591.0,0.77153]
[1751497966298,3.39219541,2591.2,2591.0,0.77153]
[1751497966495,2.62070541,2591.2,2590.9,0.663]
[1751497966703,2.62070541,2591.0,2590.9,0.663]
[1751497967303,3.39225541,2591.0,2590.9,0.663]
[1751497967703,0.7716,2590.9,2590.7,1.46153]
[1751497968105,6.22554464,2591.0,2590.7,1.46153]
[1751497968307,0.77159,2590.9,2590.7,1.46153]
[1751497968506,7.51072464,2591.0,2590.7,1.46153]
[1751497969309,7.51072464,2591.0,2590.7,0.6899]
[1751497969505,6.73916464,2591.0,2590.7,0.6899]
[1751497969705,7.51072464,2591.0,2590.8,0.7716]
[1751497970210,6.73916464,2591.0,2590.8,0.7716]
[1751497970906,6.73916464,2591.0,2590.6,0.77166]
[1751497971106,0.77158,2590.9,2590.6,0.77166]
[1751497971604,1.3037,2590.9,2590.7,0.77164]
[1751497972009,6.87243464,2591.0,2590.7,0.77164]
[1751497972408,5.45396464,2591.0,2590.9,0.77158]
[1751497972707,35.642,2591.0,2590.9,0.77158]
[1751497973102,1.93417916,2591.7,2590.7,1.92909]
[1751497973303,53.16654928,2591.6,2591.1,0.7715]
[1751497973499,0.77148,2591.3,2591.1,0.7715]
[1751497973705,35.642,2591.2,2591.1,0.7715]
[1751497974701,2.07513,2591.5,2591.3,0.77145]
[1751497974906,1.02863424,2591.4,2591.3,0.77146]
[1751497975106,41.09496464,2591.6,2591.4,1.41702]
[1751497975305,1.0286006,2591.5,2591.4,1.41702]
[1751497975908,1.0286006,2591.5,2591.4,0.6456]
[1751497977011,1.0286006,2591.5,2591.2,1.9787]
[1751497977012,0.77145,2591.4,2591.2,0.6956]
[1751497977511,41.09496464,2591.6,2591.2,1.46708]
[1751497977512,0.77142,2591.5,2591.2,1.46708]
[1751497977813,1.02939981,2591.4,2591.2,1.46708]
[1751497978011,0.77142,2591.5,2591.2,1.46708]
[1751497978210,1.02939981,2591.4,2591.2,1.46708]
[1751497978510,0.77142,2591.5,2591.2,1.46708]
[1751497978711,1.02955079,2591.4,2591.3,0.77146]
[1751497979209,1.02955079,2591.4,2591.2,0.6956]
[1751497979408,0.77142,2591.5,2591.2,1.46707]
[1751497979607,1.02966411,2591.4,2591.3,0.77146]
[1751497989808,3.65080851,2591.4,2591.3,0.77146]
[1751497990815,3.65080851,2591.4,2590.6,2.6211444]
[1751497990816,3.65080851,2591.4,2590.3,11.044]
[1751497991013,2.6211444,2590.8,2590.7,0.6512]
[1751497991214,2.6211444,2590.8,2590.7,1.42284]
[1751497991715,3.65232743,2590.8,2590.7,1.42284]
[1751497993616,2.6211444,2591.0,2590.9,0.77158]
[1751497993816,3.65271317,2591.0,2590.9,0.77158]
[1751497995705,3.65274108,2591.0,2590.9,0.77158]
[1751497998012,1.03159668,2591.0,2590.9,0.77158]
[1751497998215,2.6211444,2591.5,2591.4,0.77143]
[1751497998419,3.65322463,2591.5,2591.4,0.77143]
[1751498004420,39.27922463,2591.5,2591.4,0.77143]
[1751498005319,39.27922463,2591.5,2591.4,1.43173]
[1751498007625,1.03208023,2591.5,2591.4,1.43173]
[1751498007825,39.27422463,2591.5,2591.4,1.43173]
[1751498012918,39.27022463,2591.5,2591.4,1.43173]
[1751498020735,40.04164463,2591.5,2591.0,3.21682]
[1751498020936,35.617,2591.5,2591.4,0.77144]
[1751498021139,37.41982351,2591.5,2591.4,0.77144]
[1751498021826,1.03141351,2591.5,2591.4,0.77144]
[1751498022031,0.00578916,2591.7,2591.6,0.77138]
[1751498022231,1.03740747,2591.7,2591.6,0.77138]
[1751498023433,0.77138,2591.6,2591.5,0.77138]
[1751498023633,3.65276271,2591.6,2591.5,0.77138]
[1751498024231,4.42414271,2591.6,2591.5,0.77138]
[1751498024632,5.79274271,2591.6,2591.5,0.77138]
[1751498030036,5.02136271,2591.6,2591.5,0.77138]
[1751498031539,1.03161831,2591.6,2591.5,0.77138]
[1751498031940,0.00578916,2591.7,2591.6,0.77138]
[1751498032339,1.03970933,2591.7,2591.6,0.77138]
[1751498035238,9.16e-06,2591.7,2591.6,0.77138]
[1751498037746,11.028,2592.4,2591.6,6.92845]
[1751498037949,1.03222215,2592.3,2592.2,0.7712]
[1751498038147,56.212,2592.8,2592.7,0.77105]
[1751498038350,59.86480727,2592.8,2592.7,0.77105]
[1751498038648,59.21780727,2592.8,2592.7,0.77105]
[1751498038846,3.65280727,2592.8,2592.7,0.77105]
[1751498042246,2.6211444,2592.8,2592.7,0.77105]
[1751498043249,3.64995999,2592.8,2592.7,0.77105]
[1751498043449,5.03585999,2592.8,2592.7,0.77105]
[1751498045953,3.64995999,2592.8,2592.7,0.77105]
[1751498046148,2.6211444,2592.8,2592.7,0.77105]
[1751498046353,3.64914703,2592.8,2592.7,0.77105]
[1751498046556,2.6211444,2592.9,2592.8,0.77102]
[1751498047054,1.3286,2593.4,2593.0,0.77096]
[1751498047055,2.6211444,2593.1,2593.0,0.77096]
[1751498047354,38.1891444,2593.1,2593.0,0.77096]
[1751498048154,2.6211444,2593.1,2593.0,0.77096]
[1751498048356,38.1881444,2593.1,2593.0,0.77096]
[1751498049048,11.7013,2593.4,2593.3,0.77087]
[1751498049251,50.91587262,2593.4,2593.3,0.77087]
[1751498050357,51.68671262,2593.4,2593.3,0.77087]
[1751498053759,50.91587262,2593.4,2592.9,1.3676]
[1751498054060,3.74681822,2593.3,2593.2,0.7709]
[1751498054352,0.77092,2593.2,2593.1,0.77091]
[1751498054559,37.6066,2593.2,2593.1,0.77091]
[1751498055160,40.2277444,2593.2,2593.1,0.77091]
[1751498055958,0.77096,2593.1,2593.0,0.77094]
[1751498056160,2.6211444,2593.1,2593.0,0.77094]
[1751498056962,3.3920744,2593.1,2593.0,0.77094]
[1751498057953,0.77098,2593.0,2592.9,0.77099]
[1751498058155,38.9441244,2593.0,2592.9,0.77099]
[1751498058357,40.9070244,2593.0,2592.9,0.77099]
[1751498059365,1.9629,2593.0,2592.9,0.77099]
[1751498059565,0.77092,2593.2,2593.1,0.77091]
[1751498059764,39.97075469,2593.2,2593.1,0.77091]
[1751498059964,38.9430644,2593.2,2593.1,0.77091]
[1751498060165,39.97075781,2593.2,2593.1,0.77091]
[1751498060561,39.97075781,2593.2,2593.0,0.77094]
[1751498060562,0.77095,2593.1,2593.0,0.77094]
[1751498060762,5.72178781,2593.1,2593.0,0.77094]
[1751498063467,4.41978781,2593.1,2593.0,0.77094]
[1751498063767,39.19483781,2593.1,2593.0,0.77094]
[1751498064369,3.64883781,2593.1,2593.0,0.77094]
[1751498064570,39.19383781,2593.1,2593.0,0.77094]
[1751498065566,39.96476781,2593.1,2593.0,0.77094]
[1751498066969,39.19383781,2593.1,2593.0,0.77094]
[1751498067166,39.96476781,2593.1,2593.0,0.77094]
[1751498068872,0.77098,2593.0,2592.9,0.77097]
[1751498069069,4.41981781,2593.0,2592.9,0.77097]
[1751498069569,4.41981781,2593.0,2592.8,0.00578916]
[1751498069570,0.77099,2592.9,2592.8,0.77679916]
[1751498069772,37.33768341,2592.9,2592.8,0.77679916]
[1751498070168,37.33768341,2592.9,2592.8,0.00578916]
[1751498071069,37.33768341,2592.9,2592.4,1.3507]
[1751498071070,0.77116,2592.4,2592.0,1.92815]
[1751498071269,0.77116,2592.4,2592.3,0.77115]
[1751498071471,3.3923044,2592.4,2592.3,0.77115]
[1751498071772,4.42455319,2592.4,2592.3,0.77115]
[1751498072167,39.18939319,2592.4,2592.1,2.0325]
[1751498072374,2.6211444,2592.2,2592.1,1.3353]
[1751498072573,4.42470676,2592.2,2592.1,2.10653]
[1751498072773,4.42470676,2592.2,2592.1,1.3353]
[1751498073571,4.42470676,2592.2,2592.1,2.10653]
[1751498073773,4.42436026,2592.2,2592.1,2.10653]
[1751498075677,4.42436026,2592.2,2592.1,1.3353]
[1751498076376,4.42436026,2592.2,2592.1,2.10653]
[1751498076977,4.42436026,2592.2,2592.1,1.3353]
[1751498077181,4.42436026,2592.2,2592.1,1.34660933]
[1751498077672,9.42436026,2592.2,2592.1,0.01130933]
[1751498077878,15.99526026,2592.2,2591.7,0.6798]
[1751498078081,2.6211444,2591.8,2591.7,1.45115]
[1751498078271,38.1551444,2591.8,2591.7,2.77085]
[1751498078878,35.534,2592.0,2591.7,1.9995]
[1751498079071,35.534,2592.0,2591.9,0.77129]
[1751498079275,0.77124,2592.1,2592.0,0.77126]
[1751498079473,36.56333565,2592.1,2592.0,0.77126]
[1751498080480,36.56298113,2592.1,2592.0,0.77126]
[1751498080784,35.532,2592.2,2592.1,0.77123]
[1751498080984,36.56202456,2592.2,2592.1,0.77123]
[1751498081183,1.03002456,2592.2,2592.1,0.77123]
[1751498081378,4.92282403,2593.0,2592.9,0.77099]
[1751498081578,2.6211444,2593.0,2592.9,0.77099]
[1751498081786,38.1551444,2593.0,2592.9,0.77099]
[1751498083876,2.6211444,2593.0,2592.9,0.77099]
[1751498084083,38.1511444,2593.0,2592.9,0.77099]
[1751498084478,35.53,2593.0,2592.9,0.77099]
[1751498084685,38.1511444,2593.0,2592.9,0.77099]
[1751498087988,2.6211444,2593.0,2592.9,0.77099]
[1751498088188,38.1461444,2593.0,2592.9,0.77099]
[1751498091490,38.1461444,2593.0,2592.9,1.44239]
[1751498092187,38.1431444,2593.0,2592.9,1.44239]
[1751498093288,39.16769344,2593.0,2592.9,1.44239]
[1751498100493,3.64569344,2593.0,2592.9,1.44239]
[1751498100694,3.64565118,2593.0,2592.9,1.44239]
[1751498102592,1.02450678,2593.0,2592.9,1.44239]
[1751498102892,1.02450678,2593.0,2592.9,2.82609]
[1751498103094,2.6211444,2593.1,2593.0,0.77096]
[1751498103588,1.285,2593.5,2593.2,0.7709]
[1751498103791,1.02432085,2593.4,2593.3,1.41697]
[1751498104089,1.02432085,2593.4,2593.3,2.06387]
[1751498104493,35.506,2593.5,2593.4,0.77084]
[1751498104685,39.15142289,2593.5,2593.4,0.77084]
[1751498105092,40.41562289,2593.5,2593.4,0.77084]
[1751498105990,39.15142289,2593.5,2593.4,0.77084]
[1751498106196,39.15042289,2593.5,2593.4,0.77084]
[1751498110302,40.53232289,2593.5,2593.4,0.77084]
[1751498110701,39.15042289,2593.5,2593.4,0.77084]
[1751498111801,39.14142289,2593.5,2593.4,0.77084]
[1751498112006,1.02427849,2593.5,2593.4,0.77084]
[1751498112303,36.51927849,2593.5,2593.4,0.77084]
[1751498112700,39.14042289,2593.5,2593.4,0.77084]
[1751498119203,39.91123289,2593.5,2593.4,0.77084]
[1751498119410,39.14042289,2593.5,2593.4,0.77084]
[1751498120011,39.91123289,2593.5,2593.4,0.77084]
[1751498120309,40.48972289,2593.5,2593.4,0.77084]
[1751498121614,41.26053289,2593.5,2593.4,0.77084]
[1751498121812,0.77089,2593.3,2593.2,0.77087]
[1751498122012,38.8750344,2593.3,2593.2,0.77087]
[1751498122213,39.89931289,2593.3,2593.2,0.77087]
[1751498122412,41.15262289,2593.3,2593.2,0.77087]
[1751498123011,41.92349289,2593.3,2593.2,0.77087]
[1751498124213,41.15262289,2593.3,2593.2,0.77087]
[1751498125114,39.77702289,2593.3,2593.2,0.77087]
[1751498129815,39.12842289,2593.3,2593.2,0.77087]
[1751498131716,39.89929289,2593.3,2593.2,0.77087]
[1751498133921,39.12842289,2593.3,2593.2,0.77087]
[1751498134221,39.89929289,2593.3,2593.2,0.77087]
[1751498135621,39.12842289,2593.3,2593.2,0.77087]
[1751498140423,39.89929289,2593.3,2593.2,0.77087]
[1751498142124,39.12842289,2593.3,2593.2,0.77087]
[1751498142426,39.89929289,2593.3,2593.2,0.77087]
[1751498142926,39.12842289,2593.3,2593.2,0.77087]
[1751498143225,39.89929289,2593.3,2593.2,0.77087]
[1751498143525,39.12842289,2593.3,2593.2,0.77087]
[1751498144222,41.05563289,2593.3,2592.5,1.92771]
[1751498144427,0.77103,2592.9,2592.8,0.77101]
[1751498144625,38.8511744,2592.9,2592.8,0.77101]
[1751498144924,39.87545289,2592.9,2592.8,0.77101]
[1751498145126,39.10442289,2592.9,2592.0,1.9281]
[1751498145325,2.6211444,2592.2,2592.1,0.6418]
[1751498145527,2.6211444,2592.2,2592.1,1.41303]
[1751498146128,2.6211444,2592.2,2592.1,1.76200485]
[1751498146427,2.6211444,2592.2,2592.1,3.06720485]
[1751498148318,2.6211444,2592.2,2592.1,1.41303]
[1751498148519,3.3923444,2592.2,2592.1,1.41303]
[1751498149224,2.6211444,2592.2,2592.1,1.41303]
[1751498150626,3.3019444,2592.6,2592.1,1.7608697]
[1751498150926,37.24775661,2592.5,2592.4,0.77114]
[1751498152125,36.47664661,2592.5,2592.4,0.77114]
[1751498153227,35.457,2592.5,2592.4,0.77114]
[1751498153827,2.6211444,2592.6,2592.5,0.77111]
[1751498154024,1.79117943,2592.6,2592.5,0.77111]
[1751498154228,39.09724383,2592.6,2592.5,0.77111]
[1751498154928,39.86832383,2592.6,2592.5,0.77111]
[1751498162224,0.77111,2592.5,2592.4,1.46272]
[1751498162432,1.79048846,2592.5,2592.4,1.46272]
[1751498162934,0.77111,2592.5,2592.4,1.46272]
[1751498163334,38.8482444,2592.6,2592.5,0.77111]
[1751498163532,39.86764591,2592.6,2592.5,0.77111]
[1751498164933,0.77111,2592.5,2592.4,1.46272]
[1751498165132,1.79051151,2592.5,2592.4,1.46272]
[1751498165734,1.79051151,2592.5,2592.4,0.77112]
[1751498166432,1.79051151,2592.5,2592.3,0.77115]
[1751498166433,0.77117,2592.4,2592.3,0.77115]
[1751498166735,3.3923144,2592.4,2592.3,0.77115]
[1751498168538,4.41251632,2592.4,2592.3,0.77115]
[1751498169534,0.77123,2592.1,2592.0,1.45235]
[1751498169735,3.3923744,2592.1,2592.0,1.45235]
[1751498169936,4.41278999,2592.1,2592.0,0.6811]
[1751498170636,4.41278999,2592.1,2592.0,1.45236]
[1751498171439,4.41278999,2592.1,2592.0,0.6811]
[1751498172340,0.77129,2591.9,2591.8,0.6997]
[1751498172537,39.9893744,2591.9,2591.3,0.6939]
[1751498172836,2.6211444,2591.4,2591.3,2.11577]
[1751498174233,3.3925844,2591.4,2591.3,0.6504]
[1751498174440,4.41458533,2591.4,2591.3,0.6504]
[1751498175743,4.41458533,2591.4,2591.3,1.42187]
[1751498176040,0.77141,2591.5,2591.4,0.77141]
[1751498176349,0.77141,2591.5,2591.4,1.42081]
[1751498179345,0.77144,2591.4,2591.3,0.6504]
[1751498179551,3.3925844,2591.4,2591.3,0.6504]
[1751498179747,3.3925844,2591.4,2591.3,1.42187]
[1751498181751,2.6211444,2591.4,2591.3,1.42187]
[1751498184152,0.77137,2591.7,2591.6,0.77134]
[1751498184352,4.41590772,2591.7,2591.6,0.77134]
[1751498187847,3.64453772,2591.7,2591.6,0.77134]
[1751498188152,2.6211444,2591.7,2591.6,0.77134]
[1751498188352,3.3924944,2591.7,2591.6,0.77134]
[1751498189154,4.41599822,2591.7,2591.6,0.77138]
[1751498189354,3.3924944,2591.7,2591.6,0.77138]
[1751498190158,0.77138,2591.6,2591.5,1.42258]
[1751498190552,3.3925144,2591.7,2591.6,0.77138]
[1751498191153,4.41635185,2591.7,2591.6,0.77138]
[1751498195057,4.41635185,2591.7,2591.5,0.6512]
[1751498195058,0.77138,2591.6,2591.5,1.42259]
[1751498195258,1.79521745,2591.6,2591.5,1.42259]
[1751498196054,1.79521745,2591.6,2591.5,1.42261]
[1751498196247,0.77144,2591.4,2591.3,0.6504]
[1751498196448,3.3925844,2591.4,2591.3,0.6504]
[1751498196652,2.6211444,2591.4,2591.3,1.42187]
[1751498196859,3.3925844,2591.4,2591.3,1.42187]
[1751498197054,4.41819716,2591.4,2591.3,1.42187]
[1751498198655,0.77147,2591.3,2591.2,0.77148]
[1751498199256,1.7980692,2591.3,2591.2,0.77148]
[1751498200056,1.0265992,2591.3,2591.2,0.77148]
[1751498200257,38.8185744,2591.5,2591.4,0.77144]
[1751498200556,39.84548018,2591.5,2591.4,0.77144]
[1751498200763,39.07405018,2591.5,2591.4,0.77144]
[1751498200953,39.84546018,2591.5,2591.4,0.77144]
[1751498203065,39.07405018,2591.5,2591.4,0.77144]
[1751498203260,39.84546018,2591.5,2591.4,0.77144]
[1751498206270,0.7715,2591.3,2591.2,0.77148]
[1751498206567,0.7715,2591.2,2591.1,0.77151]
[1751498206769,1.79840578,2591.2,2591.1,0.77151]
[1751498207167,1.02690578,2591.2,2591.1,0.77151]
[1751498209875,1.79840578,2591.2,2591.1,0.77151]
[1751498210276,1.02690578,2591.2,2591.1,0.77151]
[1751498211578,1.79840578,2591.2,2591.1,0.77151]
[1751498212280,1.02690578,2591.2,2591.1,0.77151]
[1751498212580,1.79840578,2591.2,2591.1,0.77151]
[1751498217785,0.77159,2590.9,2590.8,0.6543]
[1751498217983,4.42020668,2590.9,2590.8,0.77162]
[1751498218184,0.77165,2590.8,2590.7,0.77163]
[1751498218484,1.79912228,2590.8,2590.7,0.77163]
[1751498219981,0.77165,2590.7,2590.6,1.44156]
[1751498220277,4.42026668,2590.7,2590.6,1.44156]
[1751498220477,1.02747228,2590.7,2590.6,1.44156]
[1751498222088,0.77163,2590.8,2590.7,0.77165]
[1751498222385,1.79824073,2590.8,2590.7,0.77165]
[1751498223579,0.77165,2590.7,2590.6,1.44156]
[1751498223886,4.41940513,2590.7,2590.6,1.44156]
[1751498224190,3.3927944,2590.7,2590.6,1.44156]
[1751498225084,2.6211444,2590.7,2590.6,1.44156]
[1751498225389,3.3927944,2590.7,2590.6,1.44156]
[1751498225589,2.6211444,2590.7,2590.6,1.44156]
[1751498225789,3.6472635,2590.7,2590.6,1.44156]
[1751498226190,0.77164,2590.8,2590.7,0.77165]
[1751498226392,1.79764836,2590.8,2590.7,0.77165]
[1751498226690,1.02600836,2590.8,2590.7,0.77165]
[1751498226890,0.77153,2591.2,2591.1,0.77152]
[1751498227084,1.7976299,2591.2,2591.1,0.77152]
[1751498228089,1.0260999,2591.2,2590.8,0.6658]
[1751498228290,3.3927244,2591.0,2590.9,0.77158]
[1751498228492,4.4188243,2591.0,2590.9,0.77158]
[1751498229091,3.6472443,2591.0,2590.9,0.77158]
[1751498229486,4.4188043,2591.0,2590.9,0.77158]
[1751498229894,3.6472443,2591.0,2590.9,0.77158]
[1751498231296,4.4188043,2591.0,2590.9,0.77158]
[1751498231589,3.6472443,2591.0,2590.9,0.77158]
[1751498231790,1.0260999,2591.0,2590.9,0.77158]
[1751498232187,1.7976599,2591.0,2590.9,0.77158]
[1751498232597,1.0260999,2591.0,2590.9,0.77158]
[1751498233299,1.7976599,2591.0,2590.9,0.77158]
[1751498233698,1.0260999,2591.0,2590.9,0.77158]
[1751498234199,1.7976599,2591.0,2590.9,0.77158]
[1751498234402,1.0260999,2591.0,2590.9,0.77158]
[1751498234806,1.0260999,2591.0,2590.9,2.06818]
[1751498234996,1.0260999,2591.0,2590.9,4.6893244]
[1751498235193,38.7153444,2591.8,2591.2,1.92874]
[1751498235397,3.3925544,2591.6,2591.5,0.7714]
[1751498236100,0.77143,2591.5,2591.4,0.77142]
[1751498236300,3.3925744,2591.5,2591.4,0.77142]
[1751498236801,3.3925744,2591.5,2591.4,0.77144]
[1751498239506,4.5497444,2591.5,2590.4,14.38807041]
[1751498239704,0.77153,2591.2,2591.1,0.77151]
[1751498239903,0.77154,2591.1,2591.0,0.77154]
[1751498240106,0.77158,2591.0,2590.9,0.77157]
[1751498240908,2.6211444,2591.0,2590.9,0.77157]
[1751498242502,3.3927044,2591.0,2590.9,0.77157]
[1751498242709,0.77159,2590.9,2590.8,0.6653]
[1751498243108,0.77165,2590.7,2590.6,0.6919]
[1751498243408,2.6211444,2590.7,2590.6,1.46358]
[1751498243607,3.3927944,2590.7,2590.6,1.46358]
[1751498243805,2.6211444,2590.7,2590.6,1.46358]
[1751498244608,2.6211444,2590.7,2590.6,0.6919]
[1751498246107,3.3927844,2590.7,2590.6,0.6919]
[1751498247409,0.7717,2590.6,2590.3,2.06614]
[1751498247611,0.7717,2590.6,2590.4,0.6331]
[1751498248809,2.6211444,2590.5,2590.4,0.6331]
[1751498249412,2.6211444,2590.5,2590.4,1.40483]
[1751498249610,2.6211444,2590.5,2590.4,0.6331]
[1751498250211,3.3928444,2590.5,2590.4,0.6331]
[1751498250613,2.6211444,2590.5,2590.4,1.40483]
[1751498250814,2.6211444,2590.5,2590.4,0.6331]
[1751498251014,3.3928444,2590.5,2590.4,0.6331]
[1751498251913,0.77179,2590.2,2590.1,1.01649302]
[1751498252215,3.3929344,2590.2,2590.1,1.64859302]
[1751498252417,3.3929344,2590.2,2590.1,1.3177]
[1751498252814,2.6211444,2590.2,2590.1,1.3177]
[1751498253014,3.3929344,2590.2,2590.1,1.3177]
[1751498253716,2.6211444,2590.2,2590.1,2.08952]
[1751498254718,0.77159,2590.9,2590.4,1.92934]
[1751498254917,1.01979738,2590.8,2590.7,0.77164]
[1751498255921,3.3926844,2591.1,2590.9,0.77158]
[1751498256418,3.3926844,2591.1,2591.0,0.6394]
[1751498256617,1.7915774,2591.1,2591.0,0.6394]
[1751498256817,4.4127218,2591.1,2591.0,0.6394]
[1751498258614,3.6411818,2591.1,2590.7,0.6334]
[1751498258815,0.77161,2590.8,2590.7,0.6334]
[1751498259119,0.77161,2590.8,2590.6,1.43066]
[1751498259319,2.6211444,2590.7,2590.6,0.659]
[1751498259521,3.3927844,2590.7,2590.6,0.659]
[1751498260320,0.77168,2590.6,2590.4,1.46642]
[1751498260516,2.6211444,2590.5,2590.3,1.43074]
[1751498260717,2.6211444,2590.4,2590.3,1.43076]
[1751498261320,2.6211444,2590.4,2590.3,0.659]
[1751498261621,3.3928744,2590.4,2590.3,0.659]
[1751498262118,0.77178,2590.3,2590.1,1.4725]
[1751498262319,2.6211444,2590.2,2590.1,2.1611]
[1751498262522,2.6211444,2590.2,2590.1,1.3893]
[1751498262923,2.6211444,2590.2,2590.1,2.16112]
[1751498263119,3.3929344,2590.2,2590.1,1.3893]
[1751498263722,3.3929344,2590.2,2590.1,0.6886]
[1751498264023,3.3929344,2590.2,2590.0,0.77184]
[1751498264024,0.77181,2590.2,2590.0,0.77184]
[1751498264215,0.77181,2590.2,2590.1,0.6886]
[1751498265424,2.6211444,2590.2,2590.1,0.6886]
[1751498265719,3.3929344,2590.2,2590.1,0.6886]
[1751498266518,2.6211444,2590.2,2590.1,1.46042]
[1751498266820,3.3928844,2590.4,2590.1,0.6886]
[1751498267018,3.3928844,2590.4,2590.2,0.77179]
[1751498267420,2.6211444,2590.9,2590.3,2.6211444]
[1751498267721,42.59102756,2590.8,2590.6,0.77165]
[1751498267922,41.57162,2590.8,2590.7,0.7012]
[1751498268223,1.79113833,2590.8,2590.7,0.7012]
[1751498268624,1.79113833,2590.8,2590.7,1.47284]
[1751498268824,1.01951833,2590.8,2590.7,1.47284]
[1751498269026,0.77157,2591.0,2590.8,0.77161]
[1751498269235,1.02064041,2590.9,2590.8,0.77161]
[1751498269425,0.77154,2591.1,2590.9,0.77157]
[1751498269615,2.6211444,2591.2,2590.9,0.6424]
[1751498269616,0.77155,2591.0,2590.9,0.6424]
[1751498269815,0.77155,2591.0,2590.9,1.9575]
[1751498270215,1.79769253,2591.0,2590.9,1.9575]
[1751498270425,1.02614253,2591.0,2590.9,2.72908]
[1751498271924,4.92282403,2591.8,2591.0,1.92889]
[1751498272126,0.77139,2591.6,2591.4,0.77143]
[1751498272427,2.6211444,2591.6,2591.5,0.6556]
[1751498272830,2.6211444,2591.6,2591.5,1.427]
[1751498273126,2.6211444,2591.6,2591.5,0.6556]
[1751498273729,3.3925144,2591.6,2591.5,0.6556]
[1751498274929,2.6211444,2591.6,2591.5,0.6556]
[1751498275431,3.3925144,2591.6,2591.5,0.6556]
[1751498280128,3.3924844,2591.8,2591.5,0.6556]
[1751498280325,3.3924844,2591.8,2591.6,0.77137]
[1751498280633,3.3924844,2591.8,2591.7,0.77134]
[1751498281134,3.3924844,2591.8,2591.6,1.42955]
[1751498282024,0.77134,2591.7,2591.6,1.42955]
[1751498282636,0.77134,2591.7,2591.6,0.6582]
[1751498285132,3.3924844,2591.8,2591.6,1.42957]
[1751498285337,0.77134,2591.7,2591.6,1.42957]
[1751498285939,0.77134,2591.7,2591.6,0.6582]
[1751498286438,0.77134,2591.7,2591.6,1.42957]
[1751498286839,3.3924844,2591.8,2591.6,1.42957]
[1751498287039,0.77134,2591.7,2591.6,1.42957]
[1751498287441,3.3924744,2591.8,2591.6,0.6582]
[1751498287642,3.3924744,2591.8,2591.7,0.77134]
[1751498287946,3.3924544,2591.8,2591.7,0.77134]
[1751498289141,0.77134,2591.7,2591.6,1.42955]
[1751498289641,0.77134,2591.7,2591.6,0.6582]
[1751498289838,0.77137,2591.6,2591.5,0.6556]
[1751498290039,3.3925144,2591.6,2591.5,0.6556]
[1751498292139,3.3925144,2591.6,2590.4,58.65348229]
[1751498292140,2.6211444,2591.6,2590.4,58.65348229]
[1751498292344,0.77154,2591.1,2591.0,0.77155]
[1751498292644,0.77154,2591.1,2591.0,3.11939518]
[1751498292946,0.77154,2591.1,2591.0,2.34784518]
[1751498293538,0.77154,2591.1,2591.0,0.98554518]
[1751498295547,0.77154,2591.1,2591.0,2.26924518]
[1751498297548,0.77166,2590.7,2590.6,0.77167]
[1751498297947,0.77163,2590.8,2590.7,0.77164]